bitfinex/quotes_ETHUSD_20230404
["timestamp","ask_amount","ask_price","bid_price","bid_amount"]
[1680641878543,2.79589928,1877.4,1876.6,6.16987]
[1680641878841,2.98232928,1877.4,1876.7,0.616987]
[1680641879043,2.76602218,1877.2,1876.6,0.002]
[1680641879243,4.1478771,1877.1,1877.0,0.13]
[1680641879451,7.6069515,1877.1,1877.0,0.13]
[1680641879746,7.6169515,1877.1,1877.0,0.13]
[1680641879947,7.6089515,1877.1,1877.0,0.13]
[1680641880119,7.6169515,1877.1,1877.0,0.13]
[1680641880452,7.6089515,1877.1,1877.0,0.08]
[1680641881632,10.8199515,1877.1,1877.0,0.08]
[1680641881952,16.8278615,1877.1,1876.2,0.004]
[1680641882154,6.93202218,1876.8,1876.1,0.3383771]
[1680641882309,0.23,1876.7,1876.1,0.3383771]
[1680641882509,2.76602218,1876.6,1876.1,0.3443771]
[1680641882924,2.76602218,1876.6,1876.2,0.60710462]
[1680641883117,2.76602218,1876.6,1876.2,0.61310462]
[1680641883619,2.76602218,1876.6,1876.4,0.105]
[1680641884420,2.76602218,1876.6,1876.4,0.37146]
[1680641885007,0.002,1876.7,1876.4,0.37146]
[1680641885209,5.25599515,1877.0,1876.5,5.635]
[1680641885210,0.002,1877.0,1876.5,5.635]
[1680641885564,11.04615,1877.2,1876.6,7.4978]
[1680641885565,0.002,1877.2,1876.6,7.4978]
[1680641885723,2.76602218,1877.1,1876.7,0.105]
[1680641887313,0.002,1877.3,1876.7,6.632962]
[1680641887577,3.219,1877.8,1876.7,6.634962]
[1680641887869,2.76602218,1877.7,1876.7,6.634962]
[1680641888168,2.76602218,1877.7,1876.9,5.635]
[1680641888313,2.76602218,1877.7,1877.1,0.79908]
[1680641888661,2.76602218,1877.7,1877.2,0.11]
[1680641888829,2.76602218,1877.7,1877.3,0.799]
[1680641889033,2.76602218,1877.7,1877.3,0.26633]
[1680641889644,2.76602218,1877.7,1877.2,0.37634]
[1680641889820,2.76602218,1877.7,1877.4,0.33324706]
[1680641890217,3.0428244,1877.7,1877.4,0.33324706]
[1680641890414,0.18641,1877.5,1877.4,0.33324706]
[1680641890649,2.67589928,1877.5,1877.4,0.33324706]
[1680641890855,3.09230928,1877.5,1877.4,0.39024706]
[1680641891040,6.88021121,1877.5,1877.4,0.39024706]
[1680641891238,6.88221121,1877.5,1877.4,0.39024706]
[1680641891556,2.88602218,1877.5,1877.4,0.39024706]
[1680641891723,2.65402218,1877.5,1877.4,0.057]
[1680641891915,2.84043218,1877.5,1877.4,0.057]
[1680641892852,2.65402218,1877.5,1877.4,0.057]
[1680641893051,0.002,1877.7,1877.4,0.32332]
[1680641893255,2.76602218,1877.6,1877.4,0.057]
[1680641893415,2.76602218,1877.6,1877.4,0.32332]
[1680641893615,2.76602218,1877.6,1877.5,0.3165041]
[1680641894373,7.9978344,1877.6,1877.5,0.2665041]
[1680641894575,7.9998344,1877.6,1877.5,0.3075041]
[1680641894759,7.6270244,1877.6,1877.5,0.053]
[1680641895636,14.2188344,1877.6,1877.5,0.053]
[1680641895840,10.0667115,1877.6,1877.2,0.002]
[1680641896146,10.0667115,1877.6,1877.2,0.53997658]
[1680641896147,4.166,1877.4,1877.2,0.53997658]
[1680641896342,2.95245218,1877.3,1877.2,0.53997658]
[1680641896548,3.18245218,1877.3,1877.2,0.53997658]
[1680641896877,3.55532218,1877.3,1877.2,0.53997658]
[1680641897778,7.54084211,1877.3,1877.1,0.53997658]
[1680641897977,6.93202218,1877.2,1877.0,0.54597658]
[1680641898275,0.41645,1877.1,1877.0,0.53997658]
[1680641898476,0.41645,1877.1,1876.9,0.81596486]
[1680641898477,7.0604294,1877.1,1876.9,0.54597658]
[1680641898680,7.72141218,1877.0,1876.9,0.53997658]
[1680641898884,7.72341218,1877.0,1876.9,0.53997658]
[1680641899935,7.35048218,1877.0,1876.9,0.53997658]
[1680641900768,7.16402218,1877.0,1876.9,0.53997658]
[1680641900928,2.76802218,1877.0,1876.9,0.80996486]
[1680641901133,2.76602218,1877.0,1876.9,1.06933376]
[1680641901332,2.76602218,1877.0,1876.9,1.07133376]
[1680641901546,2.76602218,1877.0,1876.9,1.07333376]
[1680641901741,2.76602218,1877.0,1876.9,0.82724579]
[1680641902074,2.76602218,1877.0,1876.9,1.90057955]
[1680641902255,2.76602218,1877.0,1876.9,1.90257955]
[1680641902454,2.76602218,1877.0,1876.9,1.07533376]
[1680641902658,2.76602218,1877.0,1876.9,1.06933376]
[1680641902838,2.76602218,1877.0,1876.9,1.44647728]
[1680641903034,2.76602218,1877.0,1876.9,1.45047728]
[1680641904144,2.76602218,1877.0,1876.9,1.44847728]
[1680641904339,2.76602218,1877.0,1876.9,1.48447728]
[1680641904964,2.76602218,1877.0,1876.9,1.73308496]
[1680641905170,0.002,1877.2,1876.9,2.28582278]
[1680641905337,0.002,1877.2,1877.1,0.55175503]
[1680641905338,2.76602218,1877.2,1877.1,0.55175503]
[1680641905675,2.76602218,1877.2,1877.1,1.37938758]
[1680641905864,2.76602218,1877.2,1877.1,0.83163255]
[1680641906035,0.002,1877.4,1877.1,1.09399255]
[1680641906241,2.76602218,1877.3,1877.2,0.81820857]
[1680641906772,0.002,1877.6,1877.2,1.62868255]
[1680641906977,0.002,1877.8,1877.4,0.55164433]
[1680641907175,0.102,1878.2,1877.7,0.55164433]
[1680641907374,0.1,1878.2,1877.8,1.86382]
[1680641907576,0.1,1878.2,1877.8,8.37477402]
[1680641907781,0.1,1878.2,1877.8,8.37677402]
[1680641907934,0.1,1878.2,1877.8,9.20440657]
[1680641908140,0.1,1878.2,1877.9,0.55164433]
[1680641908336,0.1,1878.2,1878.0,0.26624]
[1680641908650,0.1,1878.2,1878.0,2.55036276]
[1680641908853,0.1,1878.2,1878.1,2.17794688]
[1680641909051,0.1,1878.2,1878.1,1.62630255]
[1680641909757,0.1,1878.2,1878.1,0.81646795]
[1680641910157,0.1,1878.2,1878.1,1.34891795]
[1680641910361,0.1,1878.2,1878.1,2.53211137]
[1680641910888,0.1,1878.2,1878.1,0.55020288]
[1680641911086,0.1,1878.2,1878.1,1.34887288]
[1680641911251,0.1,1878.2,1878.1,0.81642288]
[1680641911678,0.1,1878.2,1878.1,0.55020288]
[1680641912231,0.1,1878.2,1878.1,0.81642288]
[1680641912519,0.1,1878.2,1878.1,0.71460842]
[1680641912676,0.1,1878.2,1878.1,1.51327842]
[1680641912877,0.1,1878.2,1878.1,2.34091097]
[1680641913087,0.1,1878.2,1878.1,1.79070809]
[1680641913572,0.1,1878.2,1878.1,0.54986907]
[1680641913777,0.1,1878.2,1878.0,1.64373162]
[1680641914004,0.1,1878.2,1878.0,0.54986907]
[1680641917986,2.86602218,1878.2,1878.0,0.54986907]
[1680641918519,2.86602218,1878.2,1878.0,0.26623]
[1680641919104,2.86602218,1878.2,1877.9,0.82210907]
[1680641919306,2.86602218,1878.2,1878.0,0.044]
[1680641919616,0.1,1878.2,1878.0,0.044]
[1680641919823,0.1,1878.2,1878.0,0.46093145]
[1680641919990,2.86602218,1878.2,1878.0,0.46093145]
[1680641920185,2.86398192,1878.2,1878.0,0.46293145]
[1680641920390,2.86398192,1878.2,1878.0,0.46093145]
[1680641921526,2.86398192,1878.2,1878.0,0.72717145]
[1680641921827,0.002,1878.4,1878.0,8.34487022]
[1680641922041,0.1,1878.5,1878.2,5.635]
[1680641922341,0.1,1878.5,1878.2,0.2682]
[1680641922643,0.1,1878.5,1878.2,0.2912]
[1680641922932,0.1,1878.5,1878.2,0.82362]
[1680641923106,0.1,1878.5,1878.2,0.82363]
[1680641923302,0.1,1878.5,1878.2,6.70266691]
[1680641923490,0.1,1878.5,1878.3,0.5]
[1680641923684,0.1,1878.5,1878.4,0.78854]
[1680641923933,0.1,1878.5,1878.4,1.28854]
[1680641924991,0.1,1878.5,1878.4,6.92354]
[1680641925197,0.1,1878.5,1878.4,7.77437]
[1680641925727,0.1,1878.6,1878.4,10.77437]
[1680641925923,0.1,1878.6,1878.4,7.82423907]
[1680641926428,0.1,1878.6,1878.5,0.5]
[1680641926637,0.1,1878.6,1878.5,7.99816]
[1680641926822,0.1,1878.6,1878.5,8.885059]
[1680641927036,0.1,1878.8,1878.5,8.385059]
[1680641928722,2.86602218,1878.8,1878.5,0.34116]
[1680641928931,2.86602218,1878.8,1878.5,0.33916]
[1680641929219,2.88789928,1878.8,1878.5,0.073]
[1680641929419,2.76602218,1878.7,1878.5,0.073]
[1680641930441,2.95231218,1878.7,1878.5,0.073]
[1680641930658,2.76602218,1878.7,1878.5,0.073]
[1680641931666,2.76602218,1878.7,1878.6,0.33163768]
[1680641936915,3.2289144,1878.7,1878.6,0.33163768]
[1680641937216,5.4969144,1878.7,1878.6,0.33163768]
[1680641937423,5.8715044,1878.7,1878.6,0.33163768]
[1680641937586,5.8715044,1878.7,1878.1,0.006]
[1680641937792,2.76602218,1878.6,1878.1,0.28810374]
[1680641938099,2.76602218,1878.6,1878.4,0.072]
[1680641939207,2.95232218,1878.6,1878.4,0.072]
[1680641940689,2.76602218,1878.6,1878.4,0.072]
[1680641941533,2.4563,1878.7,1878.4,0.072]
[1680641941830,2.76602218,1878.7,1878.4,0.072]
[1680641943300,2.76602218,1878.6,1878.4,0.072]
[1680641945231,5.22032218,1878.6,1878.4,0.072]
[1680641945437,5.22232218,1878.6,1878.4,0.072]
[1680641945594,0.23,1878.5,1878.4,0.072]
[1680641945927,2.99602218,1878.5,1878.4,0.072]
[1680641949540,5.7736244,1878.5,1878.4,0.072]
[1680641949785,6.3345644,1878.5,1878.0,0.55386907]
[1680641949949,2.252,1878.2,1877.9,0.55586907]
[1680641950120,2.76602218,1878.1,1877.9,0.55586907]
[1680641950827,2.76602218,1878.1,1878.0,0.31864527]
[1680641950828,2.95237218,1878.1,1878.0,0.31864527]
[1680641951026,2.99602218,1878.1,1878.0,0.38764527]
[1680641951606,2.99602218,1878.1,1878.0,0.93751434]
[1680641951806,3.18237218,1878.1,1878.0,0.94351434]
[1680641952011,2.99602218,1878.1,1878.0,0.87451434]
[1680641952203,3.18237218,1878.1,1878.0,0.87451434]
[1680641952808,3.18237218,1878.1,1878.0,0.32464527]
[1680641953110,3.18237218,1878.1,1878.0,0.31864527]
[1680641953533,2.99602218,1878.1,1878.0,0.31864527]
[1680641953735,3.18237218,1878.1,1878.0,0.86851434]
[1680641954281,3.18237218,1878.1,1878.0,0.31864527]
[1680641954446,2.99602218,1878.1,1878.0,0.31864527]
[1680641954948,3.18237218,1878.1,1878.0,0.31864527]
[1680641955587,3.55508218,1878.1,1878.0,0.31864527]
[1680641955948,5.82408218,1878.1,1878.0,0.31864527]
[1680641956164,5.82608218,1878.1,1878.0,0.31864527]
[1680641956339,6.4086904,1878.1,1878.0,0.31864527]
[1680641956771,6.4086904,1878.1,1877.7,1.38350162]
[1680641957097,6.4086904,1878.1,1877.7,0.54986907]
[1680641957098,2.248,1877.8,1877.7,0.54986907]
[1680641957240,2.248,1877.8,1877.6,0.54986907]
[1680641957241,5.57317218,1877.8,1877.6,0.54986907]
[1680641957443,2.99602218,1877.7,1877.6,0.54986907]
[1680641957677,5.80320218,1877.7,1877.5,0.54986907]
[1680641957878,5.02602218,1877.6,1877.4,1.37750162]
[1680641958148,2.26,1877.5,1877.4,0.54986907]
[1680641958343,2.49,1877.5,1877.4,0.54986907]
[1680641958776,2.49,1877.5,1877.4,1.37750162]
[1680641959087,6.08310318,1877.5,1877.3,1.47750162]
[1680641959296,2.99602218,1877.4,1877.3,0.64986907]
[1680641959906,2.99602218,1877.4,1877.3,1.47750162]
[1680641960269,0.002,1877.5,1877.3,0.64986907]
[1680641960468,2.248,1877.8,1877.4,0.61485598]
[1680641960718,2.248,1877.8,1877.4,0.54986907]
[1680641960719,2.97904218,1877.7,1877.4,0.54986907]
[1680641961785,0.23,1877.6,1877.4,0.54986907]
[1680641961978,2.76602218,1877.5,1877.4,0.54986907]
[1680641964719,2.76602218,1877.5,1877.4,0.87394438]
[1680641965172,2.76602218,1877.5,1877.4,0.32407531]
[1680641966438,5.26502218,1877.5,1877.4,0.32407531]
[1680641966789,5.26702218,1877.5,1877.4,0.32407531]
[1680641966991,5.48006218,1877.5,1877.4,0.32407531]
[1680641967154,5.26702218,1877.5,1877.4,0.32407531]
[1680641968469,2.76802218,1877.5,1877.4,0.32407531]
[1680641968652,2.76602218,1877.5,1877.4,0.44810275]
[1680641968861,2.76602218,1877.5,1877.4,0.71442275]
[1680641969052,2.76602218,1877.5,1877.4,0.44810275]
[1680641969256,2.76602218,1877.5,1877.4,0.32407531]
[1680641972588,2.76602218,1877.5,1877.4,0.59039531]
[1680641972892,2.76602218,1877.5,1877.4,0.32407531]
[1680641976253,2.76602218,1877.5,1877.4,0.27407531]
[1680641978686,2.76602218,1877.5,1877.4,0.82394438]
[1680641979071,2.76602218,1877.5,1877.4,0.27407531]
[1680641979496,2.76602218,1877.5,1877.4,0.54039531]
[1680641979792,0.002,1877.6,1877.4,2.65233662]
[1680641979947,0.008,1877.9,1877.5,1.34898677]
[1680641980151,2.77602218,1878.0,1877.6,0.13489868]
[1680641980457,2.77402218,1878.0,1877.6,0.13489868]
[1680641980658,2.77402218,1878.0,1877.7,0.3172344]
[1680641980986,2.77402218,1878.0,1877.6,0.95124545]
[1680641981149,0.008,1878.0,1877.7,0.09512455]
[1680641981351,0.008,1878.1,1877.7,1.44402132]
[1680641981547,2.76602218,1878.1,1877.7,1.44402132]
[1680641981751,5.04302218,1878.1,1877.7,1.44402132]
[1680641981951,0.01,1878.1,1877.9,0.26625]
[1680641982203,0.008,1878.2,1877.9,0.26625]
[1680641982368,2.277,1878.4,1877.9,0.26625]
[1680641982549,2.48995,1878.4,1877.9,0.09607089]
[1680641982753,2.46097,1878.2,1877.7,1.47281387]
[1680641982997,2.46097,1878.2,1877.7,0.64518132]
[1680641983151,5.22699218,1878.2,1877.7,0.64518132]
[1680641983357,5.23699218,1878.2,1877.7,0.64518132]
[1680641983787,5.23699218,1878.2,1877.8,0.31426556]
[1680641984795,5.23699218,1878.2,1877.8,0.86432233]
[1680641985778,2.76602218,1878.1,1877.8,0.31426556]
[1680641985987,2.97900218,1878.1,1877.8,0.31426556]
[1680641986391,2.97900218,1878.1,1877.8,0.86432233]
[1680641986587,2.98700218,1878.1,1877.8,0.86432233]
[1680641986793,2.269,1878.0,1877.8,0.31426556]
[1680641987105,2.76602218,1877.9,1877.8,0.31426556]
[1680641987304,2.76602218,1877.9,1877.8,0.95075456]
[1680641987678,2.76602218,1877.9,1877.8,0.55005677]
[1680641987889,2.76602218,1877.9,1877.7,1.39957772]
[1680641988075,2.76602218,1877.9,1877.8,0.55005677]
[1680641988287,2.76602218,1877.9,1877.7,1.39957772]
[1680641988703,2.76602218,1877.9,1877.8,0.86432233]
[1680641989319,2.76602218,1877.9,1877.8,0.31426556]
[1680641989656,2.76602218,1877.9,1877.8,0.86432233]
[1680641992297,2.76602218,1877.9,1877.8,1.69195488]
[1680641992895,2.97902218,1877.9,1877.8,0.86432233]
[1680641993098,5.24802218,1877.9,1877.8,0.86432233]
[1680641993302,5.25802218,1877.9,1877.8,0.86432233]
[1680641993902,5.25802218,1877.9,1877.8,0.31426556]
[1680641994946,5.25802218,1877.9,1877.8,0.86432233]
[1680641995434,5.91402218,1877.9,1877.8,0.31426556]
[1680641995636,6.5054224,1877.9,1877.8,0.31426556]
[1680641996742,6.5054224,1877.9,1877.7,0.55005677]
[1680641996895,0.44301,1877.8,1877.7,0.55005677]
[1680641997095,4.34029715,1877.8,1877.7,0.55005677]
[1680641997527,4.12728715,1877.8,1877.7,0.55005677]
[1680641997935,4.34029715,1877.8,1877.7,0.55005677]
[1680641998591,4.12728715,1877.8,1877.7,0.55005677]
[1680641999995,1.135,1877.8,1877.7,0.6878257]
[1680642000214,2.93839,1878.1,1877.7,1.25356988]
[1680642000388,1.13,1878.2,1877.9,0.55189322]
[1680642000589,1.128,1878.2,1877.9,0.55189322]
[1680642000840,2.76602218,1878.1,1877.9,0.55189322]
[1680642001500,2.76602218,1878.1,1877.8,1.38552577]
[1680642001719,2.76602218,1878.1,1877.9,0.55189322]
[1680642002595,3.89402218,1878.1,1877.9,0.55189322]
[1680642002807,4.10700218,1878.1,1877.8,1.38352577]
[1680642003005,4.10700218,1878.1,1877.8,1.37952577]
[1680642003212,4.10700218,1878.1,1877.8,0.55189322]
[1680642003948,3.89402218,1878.1,1877.8,0.55189322]
[1680642004542,4.10700218,1878.1,1877.8,0.55189322]
[1680642005313,4.53296218,1878.1,1877.8,0.15178141]
[1680642005513,4.9872584,1878.1,1877.8,0.15178141]
[1680642005719,0.213,1877.9,1877.8,0.15178141]
[1680642005940,2.76602218,1877.9,1877.7,0.82763255]
[1680642006127,2.76602218,1877.8,1877.7,0.82763255]
[1680642007520,4.76106218,1877.8,1877.4,0.83563255]
[1680642007726,1.62463222,1877.7,1877.4,0.82763255]
[1680642007917,2.99602218,1877.6,1877.4,0.82763255]
[1680642008744,1.33905,1877.5,1877.3,0.92763255]
[1680642008911,2.76602218,1877.4,1877.3,0.92763255]
[1680642009111,2.97908218,1877.4,1877.3,0.92763255]
[1680642009508,2.76602218,1877.4,1877.3,0.92763255]
[1680642010013,2.97908218,1877.4,1877.3,0.92763255]
[1680642010157,2.97908218,1877.4,1877.3,0.1]
[1680642010546,2.97908218,1877.4,1877.3,0.92763255]
[1680642010854,4.11408218,1877.4,1877.3,0.1]
[1680642011059,4.11408218,1877.4,1877.2,0.1]
[1680642011060,6.1305194,1877.4,1877.2,0.1]
[1680642011260,4.76723218,1877.3,1877.2,0.1]
[1680642011561,7.71723218,1877.3,1877.2,0.1]
[1680642011771,8.92251412,1877.3,1877.2,0.1]
[1680642015963,14.55751412,1877.3,1877.2,0.1]
[1680642016265,19.55751412,1877.3,1877.2,0.1]
[1680642016861,23.89951412,1877.3,1877.2,0.1]
[1680642018067,8.846,1877.0,1876.8,0.1]
[1680642018253,16.38099218,1876.9,1876.8,0.1]
[1680642018578,16.38299218,1876.9,1876.8,0.1]
[1680642019239,20.72999218,1876.9,1876.8,0.1]
[1680642020466,25.72999218,1876.9,1876.8,0.1]
[1680642020643,28.2636529,1876.9,1876.8,0.1]
[1680642021240,13.846,1876.7,1876.4,0.1]
[1680642021454,3.89302218,1876.5,1876.4,0.1]
[1680642021675,7.76250218,1876.5,1876.4,0.1]
[1680642021962,8.6492124,1876.5,1876.4,0.1]
[1680642022168,17.4952124,1876.5,1876.4,0.1]
[1680642022755,22.4952124,1876.5,1876.4,0.1]
[1680642023131,23.6312124,1876.5,1876.4,0.1]
[1680642026392,17.9962124,1876.5,1876.4,0.1]
[1680642026925,4.11718218,1876.5,1876.4,0.1]
[1680642027123,4.11518218,1876.5,1876.4,0.1]
[1680642027423,4.54150218,1876.5,1876.4,0.1]
[1680642028503,4.54150218,1876.5,1876.4,0.05]
[1680642028691,5.39415218,1876.5,1876.4,0.05]
[1680642028927,8.39615218,1876.5,1876.4,0.05]
[1680642029122,9.2357674,1876.5,1876.4,0.05]
[1680642029511,9.4657674,1876.5,1876.4,0.05]
[1680642031725,19.4477674,1876.5,1876.3,0.1]
[1680642031925,8.89853218,1876.4,1876.3,0.1]
[1680642032133,9.71751612,1876.4,1876.3,0.1]
[1680642033158,18.56351612,1876.4,1876.3,0.1]
[1680642036291,12.92851612,1876.4,1876.3,0.1]
[1680642036464,7.11719218,1876.4,1876.3,0.1]
[1680642036777,7.54353218,1876.4,1876.3,0.1]
[1680642037914,7.77353218,1876.4,1876.3,0.1]
[1680642038162,14.54453218,1876.4,1876.3,0.1]
[1680642038370,19.6163534,1876.4,1876.3,0.1]
[1680642039051,0.21316,1876.5,1876.3,0.1]
[1680642039233,0.008,1876.9,1876.4,1.136]
[1680642039434,0.002,1876.8,1876.5,0.1136]
[1680642039632,11.1194,1877.3,1876.6,0.02190124]
[1680642040030,11.33247,1877.3,1876.6,0.02190124]
[1680642040275,11.1274,1877.3,1876.7,0.27238818]
[1680642040557,0.002,1877.3,1876.7,1.12772012]
[1680642040758,0.21307,1877.4,1876.7,0.59487012]
[1680642040958,11.33245,1877.5,1876.7,0.59487012]
[1680642041154,2.76602218,1877.4,1876.9,0.26639]
[1680642041711,2.97908218,1877.4,1876.8,0.05948701]
[1680642042016,2.76602218,1877.4,1876.9,0.26639]
[1680642042171,2.76602218,1877.4,1876.9,1.06605167]
[1680642042514,2.76602218,1877.4,1876.9,0.79918]
[1680642043278,2.76602218,1877.4,1877.0,0.26622332]
[1680642043480,2.76602218,1877.4,1877.1,0.26636]
[1680642043708,2.76602218,1877.4,1877.1,0.79909]
[1680642044619,0.01,1877.7,1877.1,0.79909]
[1680642044789,2.76602218,1877.7,1877.2,0.02189424]
[1680642045143,0.01,1877.9,1877.3,0.79899]
[1680642045338,2.76602218,1877.9,1877.3,3.06999]
[1680642045693,2.76602218,1877.9,1877.4,0.2882019]
[1680642045898,2.76602218,1877.9,1877.4,0.59738809]
[1680642047030,2.76602218,1877.9,1877.4,1.13003809]
[1680642050810,2.76602218,1877.8,1877.4,1.13003809]
[1680642051011,2.76602218,1877.8,1877.3,0.008]
[1680642051012,3.20903218,1877.8,1877.3,0.008]
[1680642051213,2.76602218,1877.8,1877.4,0.79896]
[1680642053510,0.002,1877.9,1877.4,3.06796]
[1680642053727,2.76602218,1877.9,1877.6,1.86401]
[1680642054768,2.76602218,1877.8,1877.5,0.2663]
[1680642055060,0.002,1878.0,1877.6,0.26628]
[1680642055282,2.76602218,1877.9,1877.7,0.25086037]
[1680642055669,0.002,1878.0,1877.7,0.25086037]
[1680642055872,2.76602218,1878.0,1877.7,0.25086037]
[1680642056256,2.76602218,1878.0,1877.6,0.26628]
[1680642056456,2.76602218,1878.0,1877.6,0.37645427]
[1680642057237,0.01,1878.2,1877.6,0.90904427]
[1680642057443,2.76602218,1878.1,1877.6,0.90904427]
[1680642057673,2.76602218,1878.1,1877.6,0.37645427]
[1680642058164,2.97900218,1878.1,1877.6,0.11017427]
[1680642058574,2.97900218,1878.1,1877.5,0.28818074]
[1680642059190,5.99602218,1878.0,1877.2,2.277]
[1680642059365,0.63904,1877.8,1877.1,0.006]
[1680642059564,3.05992618,1877.7,1877.0,0.64530033]
[1680642059765,3.27295618,1877.7,1877.1,0.26636]
[1680642060303,3.27295618,1877.7,1877.2,0.25274188]
[1680642060504,2.76602218,1877.7,1877.2,0.51909188]
[1680642060816,3.002,1877.8,1877.2,1.05179188]
[1680642061107,2.76602218,1877.8,1877.2,1.05179188]
[1680642061312,2.76602218,1877.8,1877.3,0.10517919]
[1680642061508,2.76317407,1877.8,1877.3,0.37150919]
[1680642062561,2.97618407,1877.8,1877.3,0.10517919]
[1680642062909,2.97618407,1877.8,1877.3,0.26633]
[1680642063110,2.76317407,1877.8,1877.3,0.26633]
[1680642063308,0.23,1877.7,1877.2,0.006]
[1680642063467,2.76602218,1877.6,1877.1,0.27236]
[1680642063805,2.76602218,1877.6,1877.1,0.352872]
[1680642064656,2.76602218,1877.6,1877.1,0.80509]
[1680642068669,2.76602218,1877.6,1877.1,0.80509]
[1680642069165,2.97906218,1877.6,1877.1,0.006]
[1680642069366,2.269,1877.3,1877.0,0.006]
[1680642069586,2.99292218,1877.2,1876.8,0.006]
[1680642069904,2.76602218,1877.2,1876.8,0.002]
[1680642070077,2.76602218,1877.2,1876.8,0.2704]
[1680642070316,2.76602218,1877.2,1876.7,0.002]
[1680642070317,2.97910218,1877.2,1876.7,0.006]
[1680642070491,0.29791022,1877.1,1876.6,0.006]
[1680642070668,2.97913218,1877.0,1876.6,0.006]
[1680642071381,2.97913218,1877.0,1876.5,0.004]
[1680642071698,5.67434218,1877.0,1876.4,0.006]
[1680642071876,6.04686542,1877.0,1876.3,0.50876118]
[1680642072062,5.62065542,1877.0,1876.4,0.26646]
[1680642072264,3.35165542,1877.0,1876.4,0.26646]
[1680642072491,3.34965542,1877.0,1876.4,0.002]
[1680642072691,3.34965542,1877.0,1876.4,0.27246]
[1680642072887,3.34965542,1877.0,1876.4,0.29436356]
[1680642073088,2.271,1877.1,1876.4,6.46229356]
[1680642073265,2.76602218,1877.1,1876.5,0.23458058]
[1680642073465,2.97911218,1877.1,1876.6,0.26643]
[1680642073766,2.97911218,1877.1,1876.6,0.006]
[1680642074810,2.76602218,1877.1,1876.6,0.27243]
[1680642075013,0.002,1877.2,1876.6,0.885833]
[1680642075349,3.002,1877.5,1876.7,0.02190006]
[1680642075501,2.76602218,1877.4,1876.8,0.26639]
[1680642075814,2.76602218,1877.4,1876.8,0.35510301]
[1680642076012,2.76602218,1877.4,1876.8,0.88792301]
[1680642076771,2.76602218,1877.4,1876.8,0.08871301]
[1680642077004,2.76602218,1877.4,1876.8,0.80521]
[1680642077206,2.97908218,1877.4,1876.8,0.27239]
[1680642078210,2.76602218,1877.4,1876.8,0.80521]
[1680642079008,2.97908218,1877.4,1876.8,0.80521]
[1680642079211,2.97908218,1877.4,1876.9,0.346911]
[1680642079400,2.97908218,1877.4,1876.9,0.080521]
[1680642079972,2.97908218,1877.4,1876.7,0.29431006]
[1680642082086,2.76602218,1877.4,1876.7,0.82716006]
[1680642082283,2.76602218,1877.4,1876.7,0.77716006]
[1680642082284,2.77402218,1877.4,1876.7,0.77716006]
[1680642082486,2.77402218,1877.4,1876.7,6.41216006]
[1680642082718,2.77402218,1877.4,1876.8,0.64121601]
[1680642082879,0.008,1877.4,1876.9,0.79915]
[1680642083079,3.008,1877.4,1876.9,0.79915]
[1680642083613,0.008,1877.4,1876.9,0.79915]
[1680642083977,0.008,1877.5,1876.9,0.79915]
[1680642084177,2.76602218,1877.5,1877.0,0.079915]
[1680642084510,3.0,1877.4,1877.0,0.346285]
[1680642086061,2.98107218,1877.5,1877.0,0.079915]
[1680642086226,2.97907218,1877.5,1877.0,0.079915]
[1680642086423,2.97907218,1877.5,1876.9,0.27238]
[1680642086629,2.97908218,1877.4,1876.9,0.006]
[1680642086831,2.97908218,1877.4,1876.9,0.004]
[1680642087062,2.76602218,1877.4,1876.8,0.80522]
[1680642087221,2.97908218,1877.4,1876.8,0.2724]
[1680642087421,2.97908218,1877.4,1876.8,0.14167169]
[1680642087661,2.97908218,1877.4,1876.8,0.69314861]
[1680642088039,2.97908218,1877.4,1876.8,0.95954861]
[1680642088240,2.97908218,1877.4,1876.9,0.25168888]
[1680642088445,2.97908218,1877.4,1876.9,0.25768888]
[1680642088637,3.3197994,1877.4,1876.9,0.25768888]
[1680642088842,3.7459194,1877.4,1876.9,0.25568888]
[1680642089249,3.3197994,1877.4,1876.9,0.25768888]
[1680642089559,0.33197994,1877.3,1876.9,0.52206888]
[1680642089755,2.76602218,1877.2,1876.9,0.52006888]
[1680642089974,2.76602218,1877.2,1876.9,0.52406888]
[1680642092003,0.002,1877.4,1876.9,6.69185888]
[1680642092162,0.21303,1877.7,1877.0,1.22066281]
[1680642092345,2.97905218,1877.7,1877.1,0.26636]
[1680642093074,2.76602218,1877.7,1877.1,0.80109]
[1680642093392,2.76602218,1877.7,1877.3,0.26633]
[1680642093576,2.76602218,1877.7,1877.2,0.26634]
[1680642093980,2.97904218,1877.7,1877.1,0.80508]
[1680642094180,0.36866048,1877.6,1877.1,0.27235]
[1680642094345,0.36866048,1877.6,1877.1,0.47492728]
[1680642095295,2.76602218,1877.5,1877.1,0.20857728]
[1680642095489,2.76602218,1877.5,1877.1,0.002]
[1680642095648,2.76602218,1877.5,1877.0,0.82384692]
[1680642096040,2.76602218,1877.5,1877.0,1.35660692]
[1680642096494,0.002,1877.6,1877.0,1.35660692]
[1680642096669,2.76602218,1877.6,1877.2,0.26634]
[1680642097487,2.76602218,1877.6,1877.1,0.40802069]
[1680642098589,2.97906218,1877.6,1877.1,0.14166069]
[1680642098748,2.97906218,1877.6,1877.0,0.55747692]
[1680642099187,2.76602218,1877.6,1877.1,0.26636]
[1680642099362,2.76602218,1877.6,1877.1,0.26836]
[1680642099693,2.76602218,1877.6,1877.1,0.93874969]
[1680642099856,2.76602218,1877.6,1877.1,0.94074969]
[1680642100278,2.76602218,1877.6,1877.1,1.49222661]
[1680642100787,2.76602218,1877.6,1877.1,0.94074969]
[1680642101163,2.76602218,1877.6,1877.1,0.40801969]
[1680642102196,2.76602218,1877.6,1877.1,0.94074969]
[1680642102398,2.76602218,1877.6,1877.1,1.49222661]
[1680642103188,0.36813634,1877.5,1877.1,1.49222661]
[1680642104303,0.36813634,1877.5,1877.3,0.26633]
[1680642105112,0.36813634,1877.5,1877.2,1.50572958]
[1680642106721,0.36549037,1877.5,1877.2,1.49972958]
[1680642107320,0.02190006,1877.7,1877.2,1.49972958]
[1680642108187,0.3684309,1877.6,1877.2,1.49972958]
[1680642109520,0.3684309,1877.6,1877.2,0.96703958]
[1680642112417,3.13445308,1877.6,1877.2,0.55147692]